[Event "Live Chess"]
[Site "Chess.com"]
[Date "2024.06.02"]
[Round "-"]
[White "booktrunk"]
[Black "Dhaydon19"]
[Result "0-1"]
[WhiteElo "1539"]
[BlackElo "2681"]
[TimeControl "300"]
[EndTime "22:57:44 PDT"]
[Termination "Dhaydon19 won by resignation"]

1. d4 {[%clk 0:04:51.6]} 1... d5 {[%clk 0:04:51]} 2. c4 {[%clk 0:04:49.2]} 2...
dxc4 {[%clk 0:04:49.2]} 3. Qa4+ {[%clk 0:04:44.5]} 3... Nc6 {[%clk 0:04:48.1]}
4. Qxc4 {[%clk 0:04:42.5]} 4... Qxd4 {[%clk 0:04:46.3]} 5. Qxd4 {[%clk
0:04:40.6]} 5... Nxd4 {[%clk 0:04:45.5]} 6. Na3 {[%clk 0:04:37.4]} 6... e5
{[%clk 0:04:43.6]} 7. e3 {[%clk 0:04:35.8]} 7... Bb4+ {[%clk 0:04:40.1]} 8. Bd2
{[%clk 0:04:33.6]} 8... Bxa3 {[%clk 0:04:38]} 9. exd4 {[%clk 0:04:22.5]} 9...
Bxb2 {[%clk 0:04:36.7]} 10. Rb1 {[%clk 0:04:21.3]} 10... Bxd4 {[%clk 0:04:36]}
11. Nf3 {[%clk 0:04:19.4]} 11... c5 {[%clk 0:04:32.5]} 12. Nxd4 {[%clk
0:04:17.6]} 12... exd4 {[%clk 0:04:31.2]} 13. Bb5+ {[%clk 0:04:16.1]} 13... Kf8
{[%clk 0:04:29.8]} 14. Rc1 {[%clk 0:04:13.7]} 14... b6 {[%clk 0:04:26]} 15. Bc6
{[%clk 0:04:11.8]} 15... Rb8 {[%clk 0:04:24.1]} 16. Bf4 {[%clk 0:04:10.5]} 16...
Bb7 {[%clk 0:04:19.7]} 17. Bxb8 {[%clk 0:04:07.3]} 17... Bxc6 {[%clk 0:04:14.5]}
18. Bxa7 {[%clk 0:04:05.7]} 18... Ke7 {[%clk 0:04:11]} 19. Bxb6 {[%clk
0:04:04.4]} 19... Nf6 {[%clk 0:04:07.9]} 20. Bxc5+ {[%clk 0:04:03.4]} 20... Ke6
{[%clk 0:04:06.7]} 21. Bxd4 {[%clk 0:04:00.8]} 21... Bxg2 {[%clk 0:03:59.9]} 22.
Rg1 {[%clk 0:03:59.4]} 22... Bd5 {[%clk 0:03:54.1]} 23. Bxf6 {[%clk 0:03:57.6]}
23... gxf6 {[%clk 0:03:51.4]} 24. Rc3 {[%clk 0:03:54.4]} 24... Ra8 {[%clk
0:03:49.1]} 25. a3 {[%clk 0:03:48.6]} 25... Rb8 {[%clk 0:03:47.7]} 26. Re3+
{[%clk 0:03:46.3]} 26... Kf5 {[%clk 0:03:46.2]} 27. Rg7 {[%clk 0:03:38.6]} 27...
h5 {[%clk 0:03:43.7]} 28. Rd3 {[%clk 0:03:31.4]} 28... Be6 {[%clk 0:03:37]} 29.
Rgg3 {[%clk 0:03:25.7]} 29... Rb1+ {[%clk 0:03:28.7]} 30. Kd2 {[%clk 0:03:23]}
30... Rb2+ {[%clk 0:03:27.4]} 31. Ke3 {[%clk 0:03:21.4]} 31... Bc4 {[%clk
0:03:24.4]} 32. Rc3 {[%clk 0:03:16.4]} 32... Bb5 {[%clk 0:03:15.6]} 33. Rf3+
{[%clk 0:03:14.7]} 33... Ke6 {[%clk 0:03:10.7]} 34. Kf4 {[%clk 0:03:05.9]} 34...
Ke7 {[%clk 0:02:54.2]} 35. Kg3 {[%clk 0:03:04.4]} 35... Bd7 {[%clk 0:02:50]} 36.
Rce3+ {[%clk 0:03:02.5]} 36... Be6 {[%clk 0:02:48.6]} 37. Rf5 {[%clk 0:02:54]}
37... Rb1 {[%clk 0:02:35.3]} 38. Rxh5 {[%clk 0:02:45.6]} 38... Rg1+ {[%clk
0:02:33.4]} 39. Kf3 {[%clk 0:02:43.9]} 39... Kf8 {[%clk 0:02:32.5]} 40. Rh4
{[%clk 0:02:40.2]} 40... Bd5+ {[%clk 0:02:28]} 41. Ke2 {[%clk 0:02:37.5]} 41...
Ra1 {[%clk 0:02:25.2]} 42. Rd4 {[%clk 0:02:29.2]} 42... Be6 {[%clk 0:02:22.6]}
43. Rg3 {[%clk 0:02:22.2]} 43... f5 {[%clk 0:02:19.7]} 44. Rd8+ {[%clk
0:02:18.6]} 44... Ke7 {[%clk 0:02:17.7]} 45. Rdd3 {[%clk 0:02:16.8]} 45... f4
{[%clk 0:02:14.8]} 46. Rg5 {[%clk 0:02:10.8]} 46... Kf6 {[%clk 0:02:13]} 47. Ra5
{[%clk 0:02:07.5]} 47... Ra2+ {[%clk 0:02:08.7]} 48. Rd2 {[%clk 0:02:05.4]}
48... Bc4+ {[%clk 0:02:06.9]} 49. Ke1 {[%clk 0:02:02.2]} 49... Ra1+ {[%clk
0:02:03.1]} 50. Rd1 {[%clk 0:02:01.2]} 50... Ra2 {[%clk 0:02:02.4]} 51. Ra4
{[%clk 0:01:59.2]} 51... Re2+ {[%clk 0:01:57.6]} 52. Kf1 {[%clk 0:01:53.2]}
52... Rc2+ {[%clk 0:01:54.1]} 53. Kg1 {[%clk 0:01:48.9]} 53... f3 {[%clk
0:01:50.8]} 54. Rb4 {[%clk 0:01:43.4]} 54... Be2 {[%clk 0:01:48.6]} 55. Rd6+
{[%clk 0:01:39.2]} 55... Ke7 {[%clk 0:01:46.2]} 56. Rb1 {[%clk 0:01:26.2]} 56...
Kxd6 {[%clk 0:01:41.1]} 57. h4 {[%clk 0:01:26.1]} 57... Rc4 {[%clk 0:01:38.5]}
58. Kh2 {[%clk 0:01:23.3]} 58... Rxh4+ {[%clk 0:01:37.1]} 59. Kg3 {[%clk
0:01:23.2]} 59... Ra4 {[%clk 0:01:36.3]} 60. Rb6+ {[%clk 0:01:16.2]} 60... Ke5
{[%clk 0:01:34.6]} 61. Rb5+ {[%clk 0:01:14.5]} 61... Bxb5 {[%clk 0:01:32.9]} 0-1

[Event "Live Chess"]
[Site "Chess.com"]
[Date "2024.06.02"]
[Round "-"]
[White "Nikaru_Hikamura"]
[Black "nigelst"]
[Result "1-0"]
[WhiteElo "1870"]
[BlackElo "1735"]
[TimeControl "300"]
[EndTime "22:57:52 PDT"]
[Termination "Nikaru_Hikamura won on time"]

1. e4 {[%clk 0:04:57]} 1... c6 {[%clk 0:04:57.9]} 2. d4 {[%clk 0:04:55.7]} 2...
d5 {[%clk 0:04:56.3]} 3. Nd2 {[%clk 0:04:55.2]} 3... dxe4 {[%clk 0:04:54.6]} 4.
Nxe4 {[%clk 0:04:55.1]} 4... Bf5 {[%clk 0:04:52.6]} 5. Ng3 {[%clk 0:04:53.8]}
5... Bg6 {[%clk 0:04:51.2]} 6. h4 {[%clk 0:04:53.1]} 6... h6 {[%clk 0:04:48.8]}
7. Nf3 {[%clk 0:04:52.6]} 7... Nd7 {[%clk 0:04:47]} 8. h5 {[%clk 0:04:51.7]}
8... Bh7 {[%clk 0:04:44.8]} 9. Bd3 {[%clk 0:04:51.3]} 9... Bxd3 {[%clk
0:04:40.5]} 10. Qxd3 {[%clk 0:04:51.2]} 10... e6 {[%clk 0:04:38.7]} 11. Bf4
{[%clk 0:04:49.1]} 11... Qa5+ {[%clk 0:04:34.8]} 12. Bd2 {[%clk 0:04:46.7]}
12... Bb4 {[%clk 0:04:32.1]} 13. a3 {[%clk 0:04:20.9]} 13... Bxd2+ {[%clk
0:04:29.4]} 14. Nxd2 {[%clk 0:04:17.9]} 14... Ngf6 {[%clk 0:04:25.9]} 15. O-O-O
{[%clk 0:04:14.1]} 15... O-O {[%clk 0:04:19.3]} 16. Nge4 {[%clk 0:04:03.7]}
16... Nxe4 {[%clk 0:04:14.6]} 17. Nxe4 {[%clk 0:04:02.7]} 17... Qf5 {[%clk
0:03:59]} 18. f3 {[%clk 0:03:56.3]} 18... Rfd8 {[%clk 0:03:50]} 19. g4 {[%clk
0:03:54.2]} 19... Qf4+ {[%clk 0:03:47.4]} 20. Kb1 {[%clk 0:03:52]} 20... Ne5
{[%clk 0:03:43.6]} 21. Qf1 {[%clk 0:02:51.1]} 21... Nxf3 {[%clk 0:03:31.3]} 22.
Rh3 {[%clk 0:02:44.4]} 22... Qxe4 {[%clk 0:03:25.6]} 23. Rxf3 {[%clk 0:02:42.3]}
23... Rd7 {[%clk 0:03:09.9]} 24. Rg3 {[%clk 0:02:27.8]} 24... Rxd4 {[%clk
0:03:04.6]} 25. Rxd4 {[%clk 0:02:25.1]} 25... Qxd4 {[%clk 0:03:02.9]} 26. g5
{[%clk 0:02:24.5]} 26... hxg5 {[%clk 0:02:52]} 27. Rxg5 {[%clk 0:02:22.5]} 27...
Kh7 {[%clk 0:02:49.4]} 28. Qg2 {[%clk 0:02:15.5]} 28... Rd8 {[%clk 0:02:31.8]}
29. Ka2 {[%clk 0:02:08.5]} 29... Qf6 {[%clk 0:02:17.4]} 30. Rg3 {[%clk
0:01:53.7]} 30... Rd5 {[%clk 0:02:11.1]} 31. Rb3 {[%clk 0:01:42.6]} 31... b5
{[%clk 0:02:01.5]} 32. Qe4+ {[%clk 0:01:33.7]} 32... Qf5 {[%clk 0:01:54]} 33.
Qe2 {[%clk 0:01:25.5]} 33... Re5 {[%clk 0:01:37.1]} 34. Qd1 {[%clk 0:01:21.8]}
34... Rd5 {[%clk 0:01:31.2]} 35. Qe2 {[%clk 0:01:15.7]} 35... Qxh5 {[%clk
0:01:20.3]} 36. Qe4+ {[%clk 0:01:14.6]} 36... Qf5 {[%clk 0:01:14.4]} 37. Qh1+
{[%clk 0:01:13.9]} 37... Kg8 {[%clk 0:01:09.7]} 38. Rc3 {[%clk 0:01:11.5]} 38...
c5 {[%clk 0:01:04.4]} 39. Qh2 {[%clk 0:01:07.2]} 39... Qe5 {[%clk 0:00:53.5]}
40. Qh4 {[%clk 0:01:00.9]} 40... Kf8 {[%clk 0:00:49]} 41. Qh8+ {[%clk 0:00:57]}
41... Ke7 {[%clk 0:00:47.6]} 42. Qc8 {[%clk 0:00:54.9]} 42... b4 {[%clk
0:00:39]} 43. axb4 {[%clk 0:00:51.4]} 43... cxb4 {[%clk 0:00:34.6]} 44. Qb7+
{[%clk 0:00:48.3]} 44... Rd7 {[%clk 0:00:27.5]} 45. Qxb4+ {[%clk 0:00:46.7]}
45... Qd6 {[%clk 0:00:21.8]} 46. Qh4+ {[%clk 0:00:43.6]} 46... f6 {[%clk
0:00:18.5]} 47. Qa4 {[%clk 0:00:38.4]} 47... Qd5+ {[%clk 0:00:16]} 48. b3 {[%clk
0:00:36]} 48... Rb7 {[%clk 0:00:13.4]} 49. Rd3 {[%clk 0:00:31.9]} 49... Qb5
{[%clk 0:00:11.4]} 50. Qd4 {[%clk 0:00:24.9]} 50... Qa5+ {[%clk 0:00:09.4]} 51.
Kb2 {[%clk 0:00:23.5]} 51... Qb5 {[%clk 0:00:07.5]} 52. Qd6+ {[%clk 0:00:22.1]}
52... Kf7 {[%clk 0:00:05.8]} 53. Qd8 {[%clk 0:00:18.8]} 53... Kg6 {[%clk
0:00:04.4]} 54. Qd4 {[%clk 0:00:16.9]} 54... Kf7 {[%clk 0:00:03.1]} 55. Qg4
{[%clk 0:00:14.9]} 55... g6 {[%clk 0:00:01.7]} 56. Qh3 {[%clk 0:00:13.2]} 56...
f5 {[%clk 0:00:01.6]} 57. Qh7+ {[%clk 0:00:12.1]} 57... Kf6 {[%clk 0:00:01.5]}
58. Qh8+ {[%clk 0:00:10.6]} 1-0

[Event "Live Chess"]
[Site "Chess.com"]
[Date "2024.06.02"]
[Round "-"]
[White "Crowded_House"]
[Black "JoeyCage"]
[Result "0-1"]
[WhiteElo "1695"]
[BlackElo "2390"]
[TimeControl "300"]
[EndTime "22:58:03 PDT"]
[Termination "JoeyCage won by resignation"]

1. d4 {[%clk 0:04:57.7]} 1... e6 {[%clk 0:04:58.4]} 2. Nf3 {[%clk 0:04:55]} 2...
d5 {[%clk 0:04:57.3]} 3. Bg5 {[%clk 0:04:53.7]} 3... Nf6 {[%clk 0:04:55.1]} 4.
e3 {[%clk 0:04:51.7]} 4... Be7 {[%clk 0:04:54]} 5. Nbd2 {[%clk 0:04:49.2]} 5...
c5 {[%clk 0:04:53]} 6. c3 {[%clk 0:04:47.7]} 6... Nc6 {[%clk 0:04:51.7]} 7. Bd3
{[%clk 0:04:45.9]} 7... h6 {[%clk 0:04:49.2]} 8. Bh4 {[%clk 0:04:44.2]} 8... a6
{[%clk 0:04:47.6]} 9. O-O {[%clk 0:04:42.7]} 9... b5 {[%clk 0:04:42.5]} 10. a3
{[%clk 0:04:29.5]} 10... Bb7 {[%clk 0:04:39.9]} 11. b4 {[%clk 0:04:25.8]} 11...
c4 {[%clk 0:04:32.7]} 12. Bc2 {[%clk 0:04:24.3]} 12... a5 {[%clk 0:04:32.5]} 13.
Qb1 {[%clk 0:04:17.1]} 13... axb4 {[%clk 0:04:25.3]} 14. axb4 {[%clk 0:04:15.7]}
14... Qc7 {[%clk 0:04:24.2]} 15. Rxa8+ {[%clk 0:04:08.7]} 15... Bxa8 {[%clk
0:04:22.8]} 16. Qb2 {[%clk 0:04:08.3]} 16... O-O {[%clk 0:04:15.2]} 17. Ra1
{[%clk 0:04:07.3]} 17... e5 {[%clk 0:04:12.7]} 18. dxe5 {[%clk 0:04:04.5]} 18...
Nxe5 {[%clk 0:04:11.3]} 19. Nxe5 {[%clk 0:04:00.4]} 19... Qxe5 {[%clk
0:04:07.2]} 20. Bg3 {[%clk 0:03:59.9]} 20... Qe6 {[%clk 0:04:05.5]} 21. Ra7
{[%clk 0:03:50.6]} 21... Nh5 {[%clk 0:03:55.3]} 22. Qa1 {[%clk 0:03:40.8]} 22...
Nxg3 {[%clk 0:03:51.7]} 23. hxg3 {[%clk 0:03:39.9]} 23... Bc6 {[%clk 0:03:49.2]}
24. Rc7 {[%clk 0:03:26.4]} 24... Bf6 {[%clk 0:03:38.3]} 25. Nf3 {[%clk
0:03:19.9]} 25... Ra8 {[%clk 0:03:35]} 26. Qb2 {[%clk 0:03:16.4]} 26... Qd6
{[%clk 0:03:31.4]} 0-1

[Event "Live Chess"]
[Site "Chess.com"]
[Date "2024.06.02"]
[Round "-"]
[White "matt1979"]
[Black "KeithArkell"]
[Result "0-1"]
[WhiteElo "1377"]
[BlackElo "2419"]
[TimeControl "300"]
[EndTime "22:59:12 PDT"]
[Termination "KeithArkell won by resignation"]

1. f4 {[%clk 0:04:58.3]} 1... d5 {[%clk 0:04:57]} 2. e3 {[%clk 0:04:56.9]} 2...
Nf6 {[%clk 0:04:54.9]} 3. Nf3 {[%clk 0:04:55.6]} 3... Bg4 {[%clk 0:04:54.4]} 4.
Nc3 {[%clk 0:04:47.1]} 4... Nbd7 {[%clk 0:04:53.2]} 5. b3 {[%clk 0:04:43.5]}
5... e5 {[%clk 0:04:52.2]} 6. fxe5 {[%clk 0:04:41.9]} 6... Nxe5 {[%clk
0:04:51.1]} 7. Be2 {[%clk 0:04:40.8]} 7... Bxf3 {[%clk 0:04:50.3]} 8. Bxf3
{[%clk 0:04:39.1]} 8... c6 {[%clk 0:04:49.6]} 9. Bb2 {[%clk 0:04:37]} 9... Bd6
{[%clk 0:04:48.6]} 10. O-O {[%clk 0:04:35.5]} 10... Qc7 {[%clk 0:04:47.8]} 11.
Qe1 {[%clk 0:04:26.8]} 11... h5 {[%clk 0:04:45.7]} 12. h3 {[%clk 0:04:21.5]}
12... O-O-O {[%clk 0:04:42]} 13. Ne2 {[%clk 0:04:11.6]} 13... g5 {[%clk
0:04:25.4]} 14. c4 {[%clk 0:03:40.5]} 14... g4 {[%clk 0:04:23.8]} 15. hxg4
{[%clk 0:03:38.9]} 15... hxg4 {[%clk 0:04:23.2]} 16. cxd5 {[%clk 0:03:31.3]}
16... gxf3 {[%clk 0:04:21.9]} 17. gxf3 {[%clk 0:03:28.3]} 17... Nd3 {[%clk
0:04:20.9]} 18. Qb1 {[%clk 0:03:21.9]} 18... Rdg8+ {[%clk 0:04:19.7]} 0-1

[Event "Live Chess"]
[Site "Chess.com"]
[Date "2024.06.02"]
[Round "-"]
[White "KyryloPoluliakh"]
[Black "AlanBstard10"]
[Result "1-0"]
[WhiteElo "1528"]
[BlackElo "1158"]
[TimeControl "300"]
[EndTime "23:00:15 PDT"]
[Termination "KyryloPoluliakh won by resignation"]

1. c4 {[%clk 0:04:56.9]} 1... e5 {[%clk 0:04:57.3]} 2. Nc3 {[%clk 0:04:55.6]}
2... Bb4 {[%clk 0:04:56.6]} 3. Nd5 {[%clk 0:04:52.7]} 3... Be7 {[%clk
0:04:55.2]} 4. g3 {[%clk 0:04:51.9]} 4... Nf6 {[%clk 0:04:52]} 5. Nxe7 {[%clk
0:04:48.1]} 5... Qxe7 {[%clk 0:04:50.8]} 6. Bg2 {[%clk 0:04:47]} 6... O-O {[%clk
0:04:48.6]} 7. e3 {[%clk 0:04:44.8]} 7... Nc6 {[%clk 0:04:47.5]} 8. Ne2 {[%clk
0:04:43.5]} 8... b6 {[%clk 0:04:43.9]} 9. d4 {[%clk 0:04:42.3]} 9... exd4 {[%clk
0:04:41.2]} 10. exd4 {[%clk 0:04:39.8]} 10... Rb8 {[%clk 0:04:34.3]} 11. b3
{[%clk 0:04:35.7]} 11... Qd6 {[%clk 0:04:28]} 12. O-O {[%clk 0:04:26.5]} 12...
Re8 {[%clk 0:04:26.4]} 13. Bb2 {[%clk 0:04:20.4]} 13... Bb7 {[%clk 0:04:22.5]}
14. Nf4 {[%clk 0:04:08.5]} 14... Ne7 {[%clk 0:04:09.3]} 15. Bxb7 {[%clk
0:04:01.3]} 15... Rxb7 {[%clk 0:04:08.3]} 16. Qd3 {[%clk 0:03:43.4]} 16... Ng6
{[%clk 0:04:02.2]} 17. Nxg6 {[%clk 0:03:36.1]} 17... hxg6 {[%clk 0:04:00.9]} 18.
Rfe1 {[%clk 0:03:34.5]} 18... Rxe1+ {[%clk 0:03:59.1]} 19. Rxe1 {[%clk
0:03:30.2]} 19... Rb8 {[%clk 0:03:57.7]} 20. Qc3 {[%clk 0:03:18]} 20... Re8
{[%clk 0:03:52.9]} 21. Rxe8+ {[%clk 0:03:14]} 21... Nxe8 {[%clk 0:03:51.5]} 22.
d5 {[%clk 0:03:11.2]} 22... Qf6 {[%clk 0:03:44.1]} 23. Qxf6 {[%clk 0:02:54.9]}
23... Nxf6 {[%clk 0:03:43.1]} 24. Bxf6 {[%clk 0:02:53.8]} 24... gxf6 {[%clk
0:03:42.3]} 25. Kg2 {[%clk 0:02:53.4]} 25... Kf8 {[%clk 0:03:40.9]} 26. Kf3
{[%clk 0:02:53.1]} 26... Ke7 {[%clk 0:03:40.2]} 27. Ke4 {[%clk 0:02:52.5]} 27...
Kd6 {[%clk 0:03:37]} 28. Kd4 {[%clk 0:02:50.9]} 28... f5 {[%clk 0:03:21.5]} 29.
b4 {[%clk 0:02:47.7]} 29... Ke7 {[%clk 0:03:19.3]} 30. a4 {[%clk 0:02:44.5]}
30... Kf6 {[%clk 0:03:12.4]} 31. f4 {[%clk 0:02:41.9]} 31... g5 {[%clk 0:03:11]}
32. c5 {[%clk 0:02:38.9]} 32... bxc5+ {[%clk 0:03:09.5]} 33. bxc5 {[%clk
0:02:37.4]} 33... gxf4 {[%clk 0:03:08.8]} 34. gxf4 {[%clk 0:02:35.5]} 34... c6
{[%clk 0:02:58.3]} 35. dxc6 {[%clk 0:02:30.1]} 35... dxc6 {[%clk 0:02:57.5]} 36.
a5 {[%clk 0:02:27.2]} 36... Ke7 {[%clk 0:02:53.8]} 37. Ke5 {[%clk 0:02:23.6]}
37... f6+ {[%clk 0:02:52.8]} 38. Kxf5 {[%clk 0:02:20.9]} 38... Kf7 {[%clk
0:02:51.6]} 39. h4 {[%clk 0:02:19.4]} 39... Kg7 {[%clk 0:02:50.4]} 40. h5 {[%clk
0:02:18.7]} 40... Kh6 {[%clk 0:02:48.3]} 41. Kxf6 {[%clk 0:02:17.2]} 41... Kxh5
{[%clk 0:02:48]} 42. f5 {[%clk 0:02:15.7]} 42... Kh6 {[%clk 0:02:47.4]} 43. Ke7
{[%clk 0:02:14.3]} 43... Kg7 {[%clk 0:02:45.9]} 44. f6+ {[%clk 0:02:13.4]} 1-0

[Event "Live Chess"]
[Site "Chess.com"]
[Date "2024.06.02"]
[Round "-"]
[White "RockTroll"]
[Black "Greenbecker"]
[Result "1-0"]
[WhiteElo "2184"]
[BlackElo "1728"]
[TimeControl "300"]
[EndTime "23:00:45 PDT"]
[Termination "RockTroll won by checkmate"]

1. Nf3 {[%clk 0:04:58.3]} 1... Nf6 {[%clk 0:04:57.9]} 2. g3 {[%clk 0:04:57.6]}
2... g6 {[%clk 0:04:56]} 3. d3 {[%clk 0:04:57.1]} 3... Bg7 {[%clk 0:04:54.3]} 4.
Bd2 {[%clk 0:04:56.6]} 4... O-O {[%clk 0:04:53.1]} 5. Qc1 {[%clk 0:04:56.2]}
5... b6 {[%clk 0:04:50.8]} 6. Bh6 {[%clk 0:04:55.8]} 6... Bb7 {[%clk 0:04:49.9]}
7. h4 {[%clk 0:04:55.1]} 7... d6 {[%clk 0:04:41.3]} 8. h5 {[%clk 0:04:54.4]}
8... Nxh5 {[%clk 0:04:32.5]} 9. Rxh5 {[%clk 0:04:53.1]} 9... gxh5 {[%clk
0:04:30.1]} 10. Qg5 {[%clk 0:04:52.7]} 10... f6 {[%clk 0:04:19]} 11. Qxg7#
{[%clk 0:04:51.2]} 1-0

[Event "Live Chess"]
[Site "Chess.com"]
[Date "2024.06.02"]
[Round "-"]
[White "dl_chess"]
[Black "MagnersCarlsberg2870"]
[Result "0-1"]
[WhiteElo "1171"]
[BlackElo "1819"]
[TimeControl "300"]
[EndTime "23:01:06 PDT"]
[Termination "MagnersCarlsberg2870 won by checkmate"]

1. e4 {[%clk 0:04:56.6]} 1... e5 {[%clk 0:04:59]} 2. Nc3 {[%clk 0:04:54.1]} 2...
Nc6 {[%clk 0:04:55.2]} 3. Bc4 {[%clk 0:04:50.1]} 3... Nf6 {[%clk 0:04:51.5]} 4.
d3 {[%clk 0:04:45.6]} 4... Bc5 {[%clk 0:04:49.1]} 5. Nf3 {[%clk 0:04:34.4]} 5...
Ng4 {[%clk 0:04:45.9]} 6. O-O {[%clk 0:04:29.7]} 6... h5 {[%clk 0:04:44.3]} 7.
h3 {[%clk 0:04:25.2]} 7... d6 {[%clk 0:04:42.8]} 8. a3 {[%clk 0:04:09.1]} 8...
Be6 {[%clk 0:04:17.2]} 9. Bxe6 {[%clk 0:04:05.8]} 9... fxe6 {[%clk 0:04:16.2]}
10. Na4 {[%clk 0:04:04.3]} 10... Nf6 {[%clk 0:04:12.2]} 11. Nxc5 {[%clk
0:04:02.5]} 11... dxc5 {[%clk 0:04:10.8]} 12. Bg5 {[%clk 0:03:58.8]} 12... Qd7
{[%clk 0:04:01.6]} 13. Nh4 {[%clk 0:03:53.6]} 13... Ne7 {[%clk 0:03:52.9]} 14.
f4 {[%clk 0:03:43.4]} 14... exf4 {[%clk 0:03:43.9]} 15. Rxf4 {[%clk 0:03:39]}
15... Qd4+ {[%clk 0:03:41.7]} 16. Kh1 {[%clk 0:03:31.3]} 16... O-O-O {[%clk
0:03:40]} 17. c3 {[%clk 0:03:27.1]} 17... Qxd3 {[%clk 0:03:37.9]} 18. Qa4 {[%clk
0:03:01.8]} 18... Kb8 {[%clk 0:03:35.1]} 19. e5 {[%clk 0:02:35]} 19... Nfd5
{[%clk 0:03:31.5]} 20. Rf7 {[%clk 0:02:18]} 20... Rde8 {[%clk 0:02:53.4]} 21.
Rd1 {[%clk 0:02:08.7]} 21... Qg3 {[%clk 0:02:45.7]} 22. Bxe7 {[%clk 0:01:54.6]}
22... Rxe7 {[%clk 0:02:35.1]} 23. Rxe7 {[%clk 0:01:50.6]} 23... Nxe7 {[%clk
0:02:32.8]} 24. Rd7 {[%clk 0:01:46.4]} 24... Qe1+ {[%clk 0:02:24.7]} 25. Kh2
{[%clk 0:01:43.9]} 25... Qxe5+ {[%clk 0:02:23.2]} 26. Kh1 {[%clk 0:01:39.5]}
26... Rf8 {[%clk 0:02:15.6]} 27. Nf3 {[%clk 0:01:27.1]} 27... Qf6 {[%clk
0:01:57.7]} 28. Qa5 {[%clk 0:01:19.4]} 28... b6 {[%clk 0:01:52.7]} 29. Qb5
{[%clk 0:01:11.4]} 29... g5 {[%clk 0:01:42.9]} 30. Qc4 {[%clk 0:00:52.1]} 30...
g4 {[%clk 0:01:38.3]} 31. hxg4 {[%clk 0:00:50.2]} 31... hxg4 {[%clk 0:01:37.1]}
32. Qxg4 {[%clk 0:00:47.9]} 32... Rg8 {[%clk 0:01:23.2]} 33. Qe4 {[%clk
0:00:33.9]} 33... Qh6+ {[%clk 0:01:15.9]} 34. Kg1 {[%clk 0:00:31.6]} 34... Qc1+
{[%clk 0:01:13.1]} 35. Kf2 {[%clk 0:00:26.4]} 35... Qxb2+ {[%clk 0:01:09.8]} 36.
Kg1 {[%clk 0:00:13]} 36... Qxg2# {[%clk 0:01:06]} 0-1

[Event "Live Chess"]
[Site "Chess.com"]
[Date "2024.06.02"]
[Round "-"]
[White "McFim"]
[Black "WilliamofOrange16th"]
[Result "1-0"]
[WhiteElo "1702"]
[BlackElo "1963"]
[TimeControl "300"]
[EndTime "23:01:38 PDT"]
[Termination "McFim won by resignation"]

1. e4 {[%clk 0:04:57.6]} 1... d6 {[%clk 0:04:58.7]} 2. d4 {[%clk 0:04:56.1]}
2... Nf6 {[%clk 0:04:58]} 3. Nc3 {[%clk 0:04:54.2]} 3... Nbd7 {[%clk 0:04:57.3]}
4. Nf3 {[%clk 0:04:53]} 4... e5 {[%clk 0:04:56.7]} 5. dxe5 {[%clk 0:04:50.7]}
5... dxe5 {[%clk 0:04:54.8]} 6. Bc4 {[%clk 0:04:47.4]} 6... Be7 {[%clk
0:04:53.4]} 7. Ng5 {[%clk 0:04:30.6]} 7... O-O {[%clk 0:04:51.8]} 8. Bxf7+
{[%clk 0:04:20.8]} 8... Rxf7 {[%clk 0:04:51.7]} 9. Ne6 {[%clk 0:04:19.8]} 9...
Qe8 {[%clk 0:04:49]} 10. Nxc7 {[%clk 0:04:18.1]} 10... Qd8 {[%clk 0:04:48.3]}
11. Nxa8 {[%clk 0:04:14.8]} 11... b5 {[%clk 0:04:46.8]} 12. O-O {[%clk
0:04:09.9]} 12... Bb7 {[%clk 0:04:43.1]} 13. Nxb5 {[%clk 0:03:57.2]} 13... Qxa8
{[%clk 0:04:36.8]} 14. Nd6 {[%clk 0:03:48.6]} 14... Bxd6 {[%clk 0:04:28.6]} 15.
Qxd6 {[%clk 0:03:46.2]} 15... Bxe4 {[%clk 0:04:27.7]} 16. f3 {[%clk 0:03:40.7]}
16... Bxc2 {[%clk 0:04:22.2]} 17. Be3 {[%clk 0:03:32.1]} 17... Ne8 {[%clk
0:03:33.9]} 18. Qd2 {[%clk 0:03:26.4]} 18... Ba4 {[%clk 0:03:28.3]} 19. b3
{[%clk 0:03:23.8]} 19... Bc6 {[%clk 0:03:26.9]} 20. Rac1 {[%clk 0:03:19.1]}
20... a6 {[%clk 0:03:10.9]} 21. Qc3 {[%clk 0:02:59.1]} 21... Bb5 {[%clk
0:03:07.1]} 22. Rf2 {[%clk 0:02:56.9]} 22... Qd5 {[%clk 0:02:50.8]} 23. a4
{[%clk 0:02:52.5]} 23... Bd3 {[%clk 0:02:44.5]} 24. Rd1 {[%clk 0:02:39.7]} 24...
e4 {[%clk 0:02:37.6]} 25. fxe4 {[%clk 0:02:37.7]} 25... Qxe4 {[%clk 0:02:36.7]}
26. Qxd3 {[%clk 0:02:31.7]} 26... Qxd3 {[%clk 0:02:32]} 27. Rxd3 {[%clk
0:02:29.2]} 27... Ne5 {[%clk 0:02:31.1]} 28. Rd8 {[%clk 0:02:23.3]} 28... Re7
{[%clk 0:02:28.7]} 29. Bc5 {[%clk 0:02:06.2]} 1-0

[Event "Live Chess"]
[Site "Chess.com"]
[Date "2024.06.02"]
[Round "-"]
[White "juniortay"]
[Black "elephantgerrald"]
[Result "1-0"]
[WhiteElo "2422"]
[BlackElo "806"]
[TimeControl "300"]
[EndTime "23:02:05 PDT"]
[Termination "juniortay won by checkmate"]

1. e4 {[%clk 0:04:58.6]} 1... e5 {[%clk 0:04:57.1]} 2. Nc3 {[%clk 0:04:56.8]}
2... Nf6 {[%clk 0:04:44.6]} 3. f4 {[%clk 0:04:55.6]} 3... exf4 {[%clk
0:04:43.5]} 4. Nf3 {[%clk 0:04:53.5]} 4... d6 {[%clk 0:04:39.8]} 5. d4 {[%clk
0:04:51.6]} 5... c5 {[%clk 0:04:38]} 6. Bxf4 {[%clk 0:04:48.2]} 6... cxd4 {[%clk
0:04:36.4]} 7. Qxd4 {[%clk 0:04:47.1]} 7... Nc6 {[%clk 0:04:31.2]} 8. Bb5 {[%clk
0:04:45.7]} 8... Bd7 {[%clk 0:04:28.9]} 9. Bxc6 {[%clk 0:04:44.6]} 9... Bxc6
{[%clk 0:04:27.7]} 10. O-O {[%clk 0:04:42.5]} 10... b6 {[%clk 0:04:24]} 11. Kh1
{[%clk 0:04:38.8]} 11... Qc7 {[%clk 0:04:20.1]} 12. Rad1 {[%clk 0:04:37.1]}
12... O-O-O {[%clk 0:04:18.6]} 13. a4 {[%clk 0:04:28]} 13... a5 {[%clk 0:04:17]}
14. Qd3 {[%clk 0:04:15]} 14... Nh5 {[%clk 0:04:07.5]} 15. Be3 {[%clk 0:04:10.6]}
15... d5 {[%clk 0:04:00.7]} 16. Nxd5 {[%clk 0:04:07.7]} 16... Bxd5 {[%clk
0:03:59.6]} 17. exd5 {[%clk 0:04:06.6]} 17... Bc5 {[%clk 0:03:43.6]} 18. Bxc5
{[%clk 0:04:00.6]} 18... Qxc5 {[%clk 0:03:42.2]} 19. Ne5 {[%clk 0:03:59.2]}
19... Rhf8 {[%clk 0:03:21.3]} 20. Qh3+ {[%clk 0:03:57.5]} 20... Kb8 {[%clk
0:03:14]} 21. Qxh5 {[%clk 0:03:55.8]} 21... Rxd5 {[%clk 0:03:11.7]} 22. Rxd5
{[%clk 0:03:43.2]} 22... Qxc2 {[%clk 0:03:03.8]} 23. Qd1 {[%clk 0:03:36.4]}
23... Qe4 {[%clk 0:02:57.6]} 24. Rd8+ {[%clk 0:03:23.8]} 24... Rxd8 {[%clk
0:02:54.4]} 25. Qxd8+ {[%clk 0:03:22.6]} 25... Kb7 {[%clk 0:02:53.1]} 26. Qd7+
{[%clk 0:03:19.8]} 26... Ka6 {[%clk 0:02:51.9]} 27. Qb5+ {[%clk 0:03:15.9]}
27... Kb7 {[%clk 0:02:50.6]} 28. Rd1 {[%clk 0:03:15]} 28... Qc2 {[%clk
0:02:35.2]} 29. Rd7+ {[%clk 0:03:02.9]} 29... Kc8 {[%clk 0:02:33.8]} 30. Qa6+
{[%clk 0:03:00.2]} 30... Kb8 {[%clk 0:02:30.2]} 31. Qa7+ {[%clk 0:02:55.6]}
31... Kc8 {[%clk 0:02:27.9]} 32. Qb7# {[%clk 0:02:52.3]} 1-0